[Event "Titled Tuesday Blitz April 05 Early 2022"]
[White "Skliarov, Viktor"]
[Black "Lamaze, Simon"]
[WhiteFideId "14106736"]
[BlackFideId "36069264"]
[WhiteElo "2229"]
[BlackElo "1999"]
[Result "1-0"]
[Round "06"]
[TimeControl "180+1"]
[Date "2022.04.05"]
[WhiteClock "0:02:54"]
[BlackClock "0:02:50"]

1. e4 {[%clk 0:03:00]}  c5 {[%clk 0:03:00]} 2. Nf3 {[%clk 0:03:00]}  Nc6 {[%clk 0:03:00]} 3. Bb5 {[%clk 0:03:00]}  d6 {[%clk 0:02:58]} 4. d4 {[%clk 0:03:00]}  cxd4 {[%clk 0:02:58]} 5. Qxd4 {[%clk 0:03:01]}  Bd7 {[%clk 0:02:58]} 6. Bxc6 {[%clk 0:03:01]}  Bxc6 {[%clk 0:02:59]} 7. Nc3 {[%clk 0:03:01]}  Nf6 {[%clk 0:02:59]} 8. Bg5 {[%clk 0:03:01]}  e6 {[%clk 0:02:59]} 9. O-O-O {[%clk 0:03:01]}  Be7 {[%clk 0:02:58]} 10. Rhe1 {[%clk 0:03:01]}  O-O {[%clk 0:02:58]} 11. Kb1 {[%clk 0:03:01]}  Qa5 {[%clk 0:02:58]} 12. Qd2 {[%clk 0:02:58]}  h6 {[%clk 0:02:54]} 13. Nd5 {[%clk 0:02:55]}  Nxd5 {[%clk 0:02:50]} 14. Qxa5 {[%clk 0:02:54]} 1-0


[Site "https://www.chess.com"]

[Event "Titled Tuesday Blitz April 05 Early 2022"]
[White "Von Buelow, Georg"]
[Black "Li, Hui"]
[WhiteFideId "4620658"]
[BlackFideId "15400310"]
[WhiteElo "2161"]
[BlackElo "1954"]
[Result "1-0"]
[Round "06"]
[TimeControl "180+1"]
[Date "2022.04.05"]
[WhiteClock "0:00:16"]
[BlackClock "0:00:01"]

1. e4 {[%clk 0:02:59]}  e5 {[%clk 0:02:59]} 2. Nf3 {[%clk 0:02:59]}  Nf6 {[%clk 0:02:59]} 3. Nc3 {[%clk 0:02:59]}  Nc6 {[%clk 0:02:59]} 4. d4 {[%clk 0:02:59]}  exd4 {[%clk 0:02:59]} 5. Nxd4 {[%clk 0:03:00]}  Bb4 {[%clk 0:02:58]} 6. Nxc6 {[%clk 0:03:00]}  bxc6 {[%clk 0:02:59]} 7. Bd3 {[%clk 0:03:01]}  O-O {[%clk 0:03:00]} 8. O-O {[%clk 0:03:01]}  d5 {[%clk 0:03:00]} 9. exd5 {[%clk 0:03:02]}  cxd5 {[%clk 0:03:01]} 10. Qf3 {[%clk 0:03:02]}  c6 {[%clk 0:03:01]} 11. Bg5 {[%clk 0:03:01]}  Bd6 {[%clk 0:03:01]} 12. h3 {[%clk 0:03:01]}  Rb8 {[%clk 0:02:53]} 13. b3 {[%clk 0:03:00]}  h6 {[%clk 0:02:43]} 14. Bf4 {[%clk 0:02:58]}  Re8 {[%clk 0:02:35]} 15. Rfe1 {[%clk 0:02:57]}  Be6 {[%clk 0:02:29]} 16. Ne2 {[%clk 0:02:50]}  Ne4 {[%clk 0:02:11]} 17. Rad1 {[%clk 0:02:43]}  Bxf4 {[%clk 0:01:55]} 18. Nxf4 {[%clk 0:02:42]}  Bf5 {[%clk 0:01:20]} 19. c4 {[%clk 0:02:34]}  Ng5 {[%clk 0:01:02]} 20. Qg3 {[%clk 0:02:34]}  Rxe1+ {[%clk 0:01:00]} 21. Rxe1 {[%clk 0:02:33]}  Bxd3 {[%clk 0:01:00]} 22. Qxd3 {[%clk 0:02:33]}  Qd6 {[%clk 0:00:45]} 23. g3 {[%clk 0:02:18]}  d4 {[%clk 0:00:28]} 24. Rd1 {[%clk 0:01:40]}  Rd8 {[%clk 0:00:26]} 25. Qf5 {[%clk 0:00:52]}  Ne6 {[%clk 0:00:22]} 26. Nd3 {[%clk 0:00:50]}  c5 {[%clk 0:00:21]} 27. h4 {[%clk 0:00:42]}  a5 {[%clk 0:00:16]} 28. Re1 {[%clk 0:00:35]}  Qd7 {[%clk 0:00:12]} 29. Re5 {[%clk 0:00:34]}  Qd6 {[%clk 0:00:09]} 30. Rd5 {[%clk 0:00:33]}  Qe7 {[%clk 0:00:10]} 31. Re5 {[%clk 0:00:25]}  Qc7 {[%clk 0:00:08]} 32. Kf1 {[%clk 0:00:23]}  Rc8 {[%clk 0:00:07]} 33. Rd5 {[%clk 0:00:20]}  a4 {[%clk 0:00:04]} 34. Ne5 {[%clk 0:00:20]}  axb3 {[%clk 0:00:03]} 35. axb3 {[%clk 0:00:20]}  Qa5 {[%clk 0:00:03]} 36. Rd7 {[%clk 0:00:18]}  Qa1+ {[%clk 0:00:03]} 37. Kg2 {[%clk 0:00:18]}  Rf8 {[%clk 0:00:03]} 38. Rxf7 {[%clk 0:00:18]}  Qa8+ {[%clk 0:00:01]} 39. Kh2 {[%clk 0:00:17]}  Qe8 {[%clk 0:00:01]} 40. Rxf8+ {[%clk 0:00:15]}  Nxf8 {[%clk 0:00:02]} 41. Nd3 {[%clk 0:00:14]}  Qe6 {[%clk 0:00:02]} 42. Qxe6+ {[%clk 0:00:13]}  Nxe6 {[%clk 0:00:03]} 43. Kg2 {[%clk 0:00:14]}  Kf7 {[%clk 0:00:03]} 44. Kf3 {[%clk 0:00:15]}  Kf6 {[%clk 0:00:03]} 45. Ke4 {[%clk 0:00:16]}  g6 {[%clk 0:00:04]} 46. g4 {[%clk 0:00:16]}  h5 {[%clk 0:00:03]} 47. g5+ {[%clk 0:00:15]}  Ke7 {[%clk 0:00:03]} 48. f4 {[%clk 0:00:15]}  Kd6 {[%clk 0:00:03]} 49. f5 {[%clk 0:00:15]}  gxf5+ {[%clk 0:00:04]} 50. Kxf5 {[%clk 0:00:16]}  Nf8 {[%clk 0:00:03]} 51. g6 {[%clk 0:00:16]}  Nxg6 {[%clk 0:00:02]} 52. Kxg6 {[%clk 0:00:16]}  Ke6 {[%clk 0:00:01]} 53. Kg5 {[%clk 0:00:16]} 1-0


[Site "https://www.chess.com"]

[Event "Titled Tuesday Blitz April 05 Early 2022"]
[White "Vusatiuk, Vladimir"]
[Black "Pakleza, Zbigniew"]
[WhiteFideId "14118610"]
[BlackFideId "1119290"]
[WhiteElo "2157"]
[BlackElo "2467"]
[Result "0-1"]
[Round "06"]
[TimeControl "180+1"]
[Date "2022.04.05"]
[WhiteClock "0:00:03"]
[BlackClock "0:00:05"]

1. d4 {[%clk 0:03:00]}  d6 {[%clk 0:03:00]} 2. c4 {[%clk 0:02:58]}  e5 {[%clk 0:03:00]} 3. Nf3 {[%clk 0:02:54]}  exd4 {[%clk 0:03:00]} 4. Nxd4 {[%clk 0:02:52]}  g6 {[%clk 0:03:01]} 5. Nc3 {[%clk 0:02:50]}  Bg7 {[%clk 0:03:01]} 6. g3 {[%clk 0:02:49]}  Ne7 {[%clk 0:03:01]} 7. Bg2 {[%clk 0:02:49]}  O-O {[%clk 0:03:02]} 8. O-O {[%clk 0:02:48]}  Nd7 {[%clk 0:03:03]} 9. e4 {[%clk 0:02:41]}  Nc6 {[%clk 0:03:01]} 10. Nc2 {[%clk 0:02:30]}  Nb6 {[%clk 0:02:44]} 11. Ne3 {[%clk 0:02:17]}  Be6 {[%clk 0:02:37]} 12. Ncd5 {[%clk 0:02:08]}  Ne5 {[%clk 0:02:15]} 13. Qc2 {[%clk 0:01:46]}  c6 {[%clk 0:02:08]} 14. Nxb6 {[%clk 0:01:37]}  Qxb6 {[%clk 0:02:09]} 15. Bd2 {[%clk 0:01:22]}  Rfe8 {[%clk 0:01:35]} 16. Rad1 {[%clk 0:01:20]}  Rad8 {[%clk 0:01:26]} 17. b3 {[%clk 0:01:10]}  h5 {[%clk 0:01:25]} 18. h3 {[%clk 0:00:56]}  Bc8 {[%clk 0:01:12]} 19. Kh2 {[%clk 0:00:42]}  Qc7 {[%clk 0:01:00]} 20. Bc3 {[%clk 0:00:39]}  Qe7 {[%clk 0:00:50]} 21. Qb2 {[%clk 0:00:38]}  Qf6 {[%clk 0:00:27]} 22. Bd4 {[%clk 0:00:18]}  c5 {[%clk 0:00:08]} 23. Nd5 {[%clk 0:00:17]}  Qe6 {[%clk 0:00:09]} 24. Nc7 {[%clk 0:00:14]}  Nf3+ {[%clk 0:00:03]} 25. Bxf3 {[%clk 0:00:12]}  Qxh3+ {[%clk 0:00:03]} 26. Kg1 {[%clk 0:00:11]}  Bxd4 {[%clk 0:00:04]} 27. Rxd4 {[%clk 0:00:10]}  cxd4 {[%clk 0:00:04]} 28. Nxe8 {[%clk 0:00:09]}  Rxe8 {[%clk 0:00:05]} 29. Qxd4 {[%clk 0:00:09]}  h4 {[%clk 0:00:06]} 30. Bg2 {[%clk 0:00:09]}  Qg4 {[%clk 0:00:06]} 31. Qxd6 {[%clk 0:00:09]}  b6 {[%clk 0:00:03]} 32. gxh4 {[%clk 0:00:07]}  Qxh4 {[%clk 0:00:01]} 33. Qg3 {[%clk 0:00:07]}  Qf6 {[%clk 0:00:02]} 34. Rd1 {[%clk 0:00:07]}  Bb7 {[%clk 0:00:01]} 35. Qe3 {[%clk 0:00:06]}  Qe7 {[%clk 0:00:01]} 36. Rd4 {[%clk 0:00:05]}  Qh4 {[%clk 0:00:01]} 37. Qf3 {[%clk 0:00:05]}  Bc8 {[%clk 0:00:01]} 38. Rd5 {[%clk 0:00:05]}  Qh7 {[%clk 0:00:02]} 39. Qg3 {[%clk 0:00:05]}  Qg7 {[%clk 0:00:02]} 40. Rg5 {[%clk 0:00:05]}  Be6 {[%clk 0:00:03]} 41. Qe5 {[%clk 0:00:04]}  Qh6 {[%clk 0:00:03]} 42. Qg3 {[%clk 0:00:04]}  Rd8 {[%clk 0:00:04]} 43. e5 {[%clk 0:00:03]}  Rd1+ {[%clk 0:00:04]} 44. Bf1 {[%clk 0:00:04]}  Bh3 {[%clk 0:00:04]} 45. Qxh3 {[%clk 0:00:04]}  Qxh3 {[%clk 0:00:04]} 46. Rg2 {[%clk 0:00:04]}  Qd3 {[%clk 0:00:04]} 47. Kh2 {[%clk 0:00:03]}  Qxf1 {[%clk 0:00:05]} 48. Rg1 {[%clk 0:00:02]}  Qxf2+ {[%clk 0:00:05]} 49. Rg2 {[%clk 0:00:03]}  Qh4# {[%clk 0:00:05]} 0-1


[Site "https://www.chess.com"]

[Event "Titled Tuesday Blitz April 05 Early 2022"]
[White "Winkels, Marcel"]
[Black "Estrada Nieto, Julian"]
[WhiteFideId "1003887"]
[BlackFideId "5101018"]
[WhiteElo "1900"]
[BlackElo "2252"]
[Result "0-1"]
[Round "06"]
[TimeControl "180+1"]
[Date "2022.04.05"]
[WhiteClock "0:00:06"]
[BlackClock "0:01:43"]

1. e4 {[%clk 0:03:00]}  e5 {[%clk 0:02:59]} 2. Nf3 {[%clk 0:02:53]}  Nc6 {[%clk 0:02:59]} 3. Bc4 {[%clk 0:02:46]}  Bc5 {[%clk 0:02:58]} 4. c3 {[%clk 0:02:44]}  d6 {[%clk 0:02:57]} 5. d4 {[%clk 0:02:42]}  exd4 {[%clk 0:02:57]} 6. cxd4 {[%clk 0:02:42]}  Bb6 {[%clk 0:02:58]} 7. h3 {[%clk 0:02:29]}  Nf6 {[%clk 0:02:57]} 8. Nc3 {[%clk 0:02:28]}  O-O {[%clk 0:02:57]} 9. O-O {[%clk 0:02:27]}  Nxe4 {[%clk 0:02:56]} 10. Nxe4 {[%clk 0:02:18]}  d5 {[%clk 0:02:56]} 11. Bd3 {[%clk 0:02:15]}  dxe4 {[%clk 0:02:55]} 12. Bxe4 {[%clk 0:02:15]}  Nxd4 {[%clk 0:02:56]} 13. Be3 {[%clk 0:02:10]}  Nxf3+ {[%clk 0:02:50]} 14. Qxf3 {[%clk 0:02:09]}  c6 {[%clk 0:02:48]} 15. Rfd1 {[%clk 0:02:07]}  Qh4 {[%clk 0:02:42]} 16. Bxb6 {[%clk 0:01:43]}  axb6 {[%clk 0:02:41]} 17. a3 {[%clk 0:01:40]}  Be6 {[%clk 0:02:39]} 18. Rd2 {[%clk 0:01:29]}  Rfd8 {[%clk 0:02:37]} 19. Rad1 {[%clk 0:01:28]}  Rxd2 {[%clk 0:02:32]} 20. Rxd2 {[%clk 0:01:28]}  Rd8 {[%clk 0:02:33]} 21. Rxd8+ {[%clk 0:01:16]}  Qxd8 {[%clk 0:02:32]} 22. Qe3 {[%clk 0:01:16]}  g6 {[%clk 0:02:30]} 23. b4 {[%clk 0:01:07]}  b5 {[%clk 0:02:29]} 24. g3 {[%clk 0:01:00]}  Bd5 {[%clk 0:02:29]} 25. Bxd5 {[%clk 0:00:49]}  Qxd5 {[%clk 0:02:28]} 26. Qe7 {[%clk 0:00:48]}  b6 {[%clk 0:02:22]} 27. Qc7 {[%clk 0:00:46]}  c5 {[%clk 0:02:15]} 28. Qxb6 {[%clk 0:00:38]}  c4 {[%clk 0:02:15]} 29. Qb8+ {[%clk 0:00:37]}  Kg7 {[%clk 0:02:14]} 30. Qc8 {[%clk 0:00:36]}  Qd4 {[%clk 0:02:05]} 31. Qc7 {[%clk 0:00:36]}  c3 {[%clk 0:02:05]} 32. Kg2 {[%clk 0:00:18]}  Qe4+ {[%clk 0:02:00]} 33. Kh2 {[%clk 0:00:18]}  c2 {[%clk 0:01:57]} 34. Qc5 {[%clk 0:00:15]}  h6 {[%clk 0:01:54]} 35. Qc3+ {[%clk 0:00:11]}  Kh7 {[%clk 0:01:51]} 36. Qc7 {[%clk 0:00:10]}  Qf5 {[%clk 0:01:46]} 37. Kg2 {[%clk 0:00:07]}  Qd5+ {[%clk 0:01:44]} 38. Kh2 {[%clk 0:00:06]}  Qc4 {[%clk 0:01:43]} 0-1


[Site "https://www.chess.com"]

[Event "Titled Tuesday Blitz April 05 Early 2022"]
[White "Yordanov, Nikolay Plamenov"]
[Black "Bachmann, Axel"]
[WhiteFideId "2907445"]
[BlackFideId "3700488"]
[WhiteElo "2248"]
[BlackElo "2587"]
[Result "1-0"]
[Round "06"]
[TimeControl "180+1"]
[Date "2022.04.05"]
[WhiteClock "0:00:11"]
[BlackClock "0:00:01"]

1. d4 {[%clk 0:03:00]}  Nf6 {[%clk 0:02:58]} 2. Bf4 {[%clk 0:03:01]}  b6 {[%clk 0:02:57]} 3. e3 {[%clk 0:03:01]}  Bb7 {[%clk 0:02:56]} 4. Nf3 {[%clk 0:03:01]}  g6 {[%clk 0:02:54]} 5. h3 {[%clk 0:03:02]}  Bg7 {[%clk 0:02:54]} 6. Be2 {[%clk 0:03:02]}  d6 {[%clk 0:02:54]} 7. O-O {[%clk 0:03:01]}  O-O {[%clk 0:02:54]} 8. c4 {[%clk 0:03:01]}  Nbd7 {[%clk 0:02:54]} 9. Nfd2 {[%clk 0:02:58]}  e5 {[%clk 0:02:51]} 10. dxe5 {[%clk 0:02:58]}  dxe5 {[%clk 0:02:48]} 11. Bg3 {[%clk 0:02:58]}  e4 {[%clk 0:02:22]} 12. Nc3 {[%clk 0:02:51]}  Nc5 {[%clk 0:02:22]} 13. Qc2 {[%clk 0:02:50]}  Qe7 {[%clk 0:01:55]} 14. Rad1 {[%clk 0:02:47]}  Rfd8 {[%clk 0:01:54]} 15. Nb3 {[%clk 0:02:45]}  Nxb3 {[%clk 0:01:52]} 16. Qxb3 {[%clk 0:02:44]}  Nd7 {[%clk 0:01:41]} 17. Bxc7 {[%clk 0:02:32]}  Rdc8 {[%clk 0:01:41]} 18. Bd6 {[%clk 0:02:31]}  Qg5 {[%clk 0:01:40]} 19. Nd5 {[%clk 0:02:21]}  Nc5 {[%clk 0:01:34]} 20. Qc2 {[%clk 0:01:55]}  Bf8 {[%clk 0:01:10]} 21. Bxf8 {[%clk 0:01:49]}  Kxf8 {[%clk 0:01:08]} 22. Qc3 {[%clk 0:01:45]}  f6 {[%clk 0:00:29]} 23. Nxf6 {[%clk 0:01:41]}  Kf7 {[%clk 0:00:21]} 24. Nd7 {[%clk 0:01:37]}  Nd3 {[%clk 0:00:18]} 25. g3 {[%clk 0:00:27]}  Rc7 {[%clk 0:00:14]} 26. Bxd3 {[%clk 0:00:26]}  Rxd7 {[%clk 0:00:10]} 27. Be2 {[%clk 0:00:25]}  Rad8 {[%clk 0:00:10]} 28. Rxd7+ {[%clk 0:00:18]}  Rxd7 {[%clk 0:00:11]} 29. b4 {[%clk 0:00:16]}  h5 {[%clk 0:00:09]} 30. h4 {[%clk 0:00:15]}  Qf5 {[%clk 0:00:09]} 31. c5 {[%clk 0:00:15]}  Rd3 {[%clk 0:00:06]} 32. Qc2 {[%clk 0:00:09]}  bxc5 {[%clk 0:00:05]} 33. bxc5 {[%clk 0:00:09]}  Rd5 {[%clk 0:00:03]} 34. Rc1 {[%clk 0:00:09]}  Bc6 {[%clk 0:00:03]} 35. Bc4 {[%clk 0:00:09]}  Kg7 {[%clk 0:00:02]} 36. Bxd5 {[%clk 0:00:09]}  Bxd5 {[%clk 0:00:02]} 37. Qc3+ {[%clk 0:00:10]}  Kh6 {[%clk 0:00:02]} 38. c6 {[%clk 0:00:11]}  Kh7 {[%clk 0:00:01]} 39. c7 {[%clk 0:00:10]}  Be6 {[%clk 0:00:01]} 40. c8=Q {[%clk 0:00:10]}  Bxc8 {[%clk 0:00:01]} 41. Qxc8 {[%clk 0:00:11]}  Qf3 {[%clk 0:00:01]} 42. Rc7+ {[%clk 0:00:11]}  Kh6 {[%clk 0:00:01]} 43. Qh8# {[%clk 0:00:11]} 1-0


[Site "https://www.chess.com"]

[Event "Titled Tuesday Blitz April 05 Early 2022"]
[White "Zlatin, Alexander"]
[Black "Krishna, C R G"]
[WhiteFideId "2810549"]
[BlackFideId "5018625"]
[WhiteElo "2228"]
[BlackElo "2332"]
[Result "0-1"]
[Round "06"]
[TimeControl "180+1"]
[Date "2022.04.05"]
[WhiteClock "0:00:01"]
[BlackClock "0:01:21"]

1. d4 {[%clk 0:02:55]}  Nf6 {[%clk 0:02:53]} 2. Nc3 {[%clk 0:02:55]}  d6 {[%clk 0:02:51]} 3. Bf4 {[%clk 0:02:54]}  Nbd7 {[%clk 0:02:51]} 4. e4 {[%clk 0:02:54]}  e5 {[%clk 0:02:51]} 5. dxe5 {[%clk 0:02:54]}  dxe5 {[%clk 0:02:52]} 6. Bg5 {[%clk 0:02:54]}  Be7 {[%clk 0:02:52]} 7. Nf3 {[%clk 0:02:54]}  c6 {[%clk 0:02:52]} 8. a4 {[%clk 0:02:47]}  h6 {[%clk 0:02:49]} 9. Bh4 {[%clk 0:02:46]}  Qb6 {[%clk 0:02:47]} 10. Rb1 {[%clk 0:02:35]}  Bb4 {[%clk 0:02:45]} 11. Bd3 {[%clk 0:02:32]}  Nc5 {[%clk 0:02:41]} 12. Bxf6 {[%clk 0:02:27]}  gxf6 {[%clk 0:02:41]} 13. O-O {[%clk 0:02:27]}  Bg4 {[%clk 0:02:41]} 14. h3 {[%clk 0:02:26]}  Nxd3 {[%clk 0:02:30]} 15. hxg4 {[%clk 0:02:13]}  Nf4 {[%clk 0:02:28]} 16. g3 {[%clk 0:02:12]}  Rd8 {[%clk 0:02:16]} 17. Qe1 {[%clk 0:01:59]}  Rg8 {[%clk 0:02:13]} 18. gxf4 {[%clk 0:01:46]}  Rxg4+ {[%clk 0:02:12]} 19. Kh1 {[%clk 0:01:40]}  Rxf4 {[%clk 0:02:12]} 20. Qe3 {[%clk 0:01:33]}  Bc5 {[%clk 0:02:12]} 21. Qe2 {[%clk 0:01:31]}  Qc7 {[%clk 0:01:47]} 22. Rg1 {[%clk 0:01:27]}  Ke7 {[%clk 0:01:39]} 23. Rg3 {[%clk 0:01:10]}  h5 {[%clk 0:01:39]} 24. Rd1 {[%clk 0:00:50]}  h4 {[%clk 0:01:36]} 25. Rg7 {[%clk 0:00:48]}  Qc8 {[%clk 0:01:34]} 26. Kh2 {[%clk 0:00:42]}  Rg8 {[%clk 0:01:29]} 27. Rdg1 {[%clk 0:00:39]}  Rxg7 {[%clk 0:01:29]} 28. Rxg7 {[%clk 0:00:39]}  Qh8 {[%clk 0:01:28]} 29. Rg1 {[%clk 0:00:34]}  Qh5 {[%clk 0:01:27]} 30. Qc4 {[%clk 0:00:07]}  Bd6 {[%clk 0:01:27]} 31. Nd4 {[%clk 0:00:01]}  exd4 {[%clk 0:01:25]} 32. e5 {[%clk 0:00:01]}  Qxe5 {[%clk 0:01:21]} 0-1


[Site "https://www.chess.com"]

[Event "Titled Tuesday Blitz April 05 Early 2022"]
[White "nobodyperfect13"]
[Black "Avazkhonov, Alikhon"]
[BlackFideId "14208504"]
[WhiteElo "1937"]
[BlackElo "1739"]
[Result "1/2-1/2"]
[Round "06"]
[TimeControl "180+1"]
[Date "2022.04.05"]
[WhiteClock "0:00:52"]
[BlackClock "0:00:21"]

1. c4 {[%clk 0:02:56]}  e5 {[%clk 0:02:58]} 2. g3 {[%clk 0:02:56]}  d6 {[%clk 0:02:58]} 3. Bg2 {[%clk 0:02:57]}  f5 {[%clk 0:02:58]} 4. d4 {[%clk 0:02:57]}  Be7 {[%clk 0:02:49]} 5. Nc3 {[%clk 0:02:55]}  Nf6 {[%clk 0:02:49]} 6. dxe5 {[%clk 0:02:55]}  dxe5 {[%clk 0:02:49]} 7. Qxd8+ {[%clk 0:02:55]}  Bxd8 {[%clk 0:02:50]} 8. Nf3 {[%clk 0:02:53]}  Nc6 {[%clk 0:02:39]} 9. e4 {[%clk 0:02:53]}  fxe4 {[%clk 0:02:36]} 10. Ng5 {[%clk 0:02:52]}  Nd4 {[%clk 0:02:34]} 11. O-O {[%clk 0:02:52]}  c6 {[%clk 0:02:19]} 12. Ngxe4 {[%clk 0:02:50]}  Be6 {[%clk 0:02:17]} 13. b3 {[%clk 0:02:47]}  O-O {[%clk 0:02:14]} 14. Ba3 {[%clk 0:02:46]}  Re8 {[%clk 0:01:56]} 15. Rac1 {[%clk 0:02:45]}  Nxe4 {[%clk 0:01:42]} 16. Bxe4 {[%clk 0:02:42]}  Bh3 {[%clk 0:01:42]} 17. Rfe1 {[%clk 0:02:40]}  Bg5 {[%clk 0:01:43]} 18. Rcd1 {[%clk 0:02:35]}  Rad8 {[%clk 0:01:34]} 19. Bc1 {[%clk 0:02:29]}  Bf6 {[%clk 0:01:22]} 20. Be3 {[%clk 0:02:25]}  Bg4 {[%clk 0:01:21]} 21. Rc1 {[%clk 0:02:23]}  Bf3 {[%clk 0:00:59]} 22. Bxd4 {[%clk 0:02:10]}  exd4 {[%clk 0:01:00]} 23. Bxf3 {[%clk 0:02:07]}  dxc3 {[%clk 0:01:00]} 24. Rxe8+ {[%clk 0:02:04]}  Rxe8 {[%clk 0:01:00]} 25. Kf1 {[%clk 0:01:59]}  Rd8 {[%clk 0:00:49]} 26. Rc2 {[%clk 0:01:58]}  Rd3 {[%clk 0:00:41]} 27. Ke2 {[%clk 0:01:57]}  Rd6 {[%clk 0:00:39]} 28. Be4 {[%clk 0:01:54]}  g6 {[%clk 0:00:34]} 29. Bd3 {[%clk 0:01:37]}  Re6+ {[%clk 0:00:28]} 30. Kd1 {[%clk 0:01:35]}  Rd6 {[%clk 0:00:25]} 31. Ke2 {[%clk 0:01:35]}  a6 {[%clk 0:00:26]} 32. Rc1 {[%clk 0:01:33]}  b5 {[%clk 0:00:24]} 33. Rd1 {[%clk 0:01:32]}  b4 {[%clk 0:00:21]} 34. Bc2 {[%clk 0:01:30]}  Re6+ {[%clk 0:00:17]} 35. Kf3 {[%clk 0:01:30]}  Kf7 {[%clk 0:00:15]} 36. h4 {[%clk 0:01:29]}  Be7 {[%clk 0:00:10]} 37. Rc1 {[%clk 0:00:55]}  Bc5 {[%clk 0:00:10]} 38. Kg2 {[%clk 0:00:48]}  Re2 {[%clk 0:00:10]} 39. Bd3 {[%clk 0:00:42]}  Rxf2+ {[%clk 0:00:10]} 40. Kh3 {[%clk 0:00:42]}  Rxa2 {[%clk 0:00:11]} 41. Rf1+ {[%clk 0:00:41]}  Rf2 {[%clk 0:00:10]} 42. Rxf2+ {[%clk 0:00:41]}  Bxf2 {[%clk 0:00:11]} 43. Kg2 {[%clk 0:00:39]}  Be1 {[%clk 0:00:12]} 44. Kf3 {[%clk 0:00:39]}  Ke6 {[%clk 0:00:10]} 45. h5 {[%clk 0:00:38]}  Kf6 {[%clk 0:00:08]} 46. hxg6 {[%clk 0:00:37]}  hxg6 {[%clk 0:00:08]} 47. g4 {[%clk 0:00:37]}  Ke5 {[%clk 0:00:04]} 48. Bxg6 {[%clk 0:00:35]}  Kd4 {[%clk 0:00:05]} 49. Ke2 {[%clk 0:00:35]}  Bh4 {[%clk 0:00:04]} 50. Kd1 {[%clk 0:00:35]}  Bg5 {[%clk 0:00:04]} 51. Kc2 {[%clk 0:00:34]}  a5 {[%clk 0:00:05]} 52. Bf7 {[%clk 0:00:34]}  c5 {[%clk 0:00:04]} 53. Be8 {[%clk 0:00:32]}  Ke4 {[%clk 0:00:04]} 54. Ba4 {[%clk 0:00:32]}  Kf4 {[%clk 0:00:03]} 55. Be8 {[%clk 0:00:33]}  Ke5 {[%clk 0:00:04]} 56. Ba4 {[%clk 0:00:34]}  Kf4 {[%clk 0:00:04]} 57. Be8 {[%clk 0:00:35]}  Kxg4 {[%clk 0:00:04]} 58. Ba4 {[%clk 0:00:35]}  Kf4 {[%clk 0:00:05]} 59. Be8 {[%clk 0:00:36]}  Ke4 {[%clk 0:00:06]} 60. Ba4 {[%clk 0:00:37]}  Kd4 {[%clk 0:00:07]} 61. Be8 {[%clk 0:00:37]}  Bd2 {[%clk 0:00:08]} 62. Ba4 {[%clk 0:00:38]}  Bg5 {[%clk 0:00:09]} 63. Be8 {[%clk 0:00:38]}  Bd2 {[%clk 0:00:10]} 64. Ba4 {[%clk 0:00:39]}  Bh6 {[%clk 0:00:11]} 65. Be8 {[%clk 0:00:40]}  Bf8 {[%clk 0:00:11]} 66. Ba4 {[%clk 0:00:40]}  Bd6 {[%clk 0:00:12]} 67. Be8 {[%clk 0:00:41]}  Ke3 {[%clk 0:00:13]} 68. Ba4 {[%clk 0:00:41]}  Bc7 {[%clk 0:00:13]} 69. Be8 {[%clk 0:00:42]}  Kd4 {[%clk 0:00:13]} 70. Ba4 {[%clk 0:00:43]}  Ke5 {[%clk 0:00:13]} 71. Be8 {[%clk 0:00:43]}  Kf5 {[%clk 0:00:13]} 72. Ba4 {[%clk 0:00:44]}  Bg3 {[%clk 0:00:14]} 73. Be8 {[%clk 0:00:45]}  Bh2 {[%clk 0:00:15]} 74. Ba4 {[%clk 0:00:45]}  Kf6 {[%clk 0:00:15]} 75. Be8 {[%clk 0:00:46]}  Bd6 {[%clk 0:00:16]} 76. Ba4 {[%clk 0:00:46]}  Ke7 {[%clk 0:00:17]} 77. Bb5 {[%clk 0:00:47]}  Kd8 {[%clk 0:00:16]} 78. Ba4 {[%clk 0:00:48]}  Be5 {[%clk 0:00:16]} 79. Bb5 {[%clk 0:00:48]}  Kc7 {[%clk 0:00:16]} 80. Ba4 {[%clk 0:00:48]}  Kd6 {[%clk 0:00:14]} 81. Bb5 {[%clk 0:00:49]}  Ke7 {[%clk 0:00:13]} 82. Ba4 {[%clk 0:00:49]}  Kf6 {[%clk 0:00:13]} 83. Bb5 {[%clk 0:00:49]}  Kf5 {[%clk 0:00:14]} 84. Ba4 {[%clk 0:00:49]}  Ke4 {[%clk 0:00:14]} 85. Bb5 {[%clk 0:00:50]}  Kd4 {[%clk 0:00:15]} 86. Ba4 {[%clk 0:00:50]}  Ke3 {[%clk 0:00:15]} 87. Bb5 {[%clk 0:00:50]}  Bd4 {[%clk 0:00:16]} 88. Ba4 {[%clk 0:00:51]}  Ke2 {[%clk 0:00:17]} 89. Bb5 {[%clk 0:00:51]}  Ke1 {[%clk 0:00:18]} 90. Ba4 {[%clk 0:00:51]}  Ke2 {[%clk 0:00:19]} 91. Bb5 {[%clk 0:00:52]}  Ke1 {[%clk 0:00:20]} 92. Ba4 {[%clk 0:00:52]}  Ke2 {[%clk 0:00:21]} 1/2-1/2


[Site "https://www.chess.com"]